Workbook

Sheet Cover Page
D1: Add company logo
N2: Version 20.1
B8: Add photo
N13: Notes:
N14: This template may require adjustments by individual operators to meet specific reporting requirements as defined in the site Permit(s)
B29: Annual Performance Report 2021
B31: Permit EPR/WP3438HZ
B33: SUEZ Suffolk Energy from Waste Facility
B37: SUEZ Recycling and Recovery
B39: Year: | C39: 2021
B41: Address: | C41: Lodge Lane, Great Blakenham, Ipswich, Suffolk, IP6 0JE
B43: Tel: | C43: 01473 839149
B45: Email: | C45: John.Tatton@Suez.com
B47: Prepared by: | C47: Richard Watkins | F47: Position: | G47: EIR Manager
C48: Robert Taylor | G48: Technical Plant Engineer
B50: Approved by: | C50: John Tatton | F50: Position: | G50: EfW Plant Manager
B52: Version: | C52: 1
B54: Issue Date: | C54: 2022-01-26

Sheet Contents
A1: =+'Cover Page'!$B$29 -> Annual Performance Report 2021 | E1: =+'Cover Page'!$B$33 -> SUEZ Suffolk Energy from Waste Facility
A3: Contents | K3: Notes:
A4: Section | B4: Subject | H4: Page | K4: Section references and Page nos. to be inserted
B5: Facility Information | K5: Sections and Subjects may require adjustment by individual operators to meet specific reporting requirements as defined in the sites Permit(s)
B6: Operational Summary
B7: Operational Data
B8: Performance Form 1
B9: Energy Form 1
B10: Permit Compliance
B11: Improvements
B12: Public Liasion
B13: Residue Quality - Optional
B14: Emissions to Water
B15: Emissions to Air (periodically monitored)
B16: Emissions to Air (continuously monitored)
B17: Hydrogen Chloride emissions
B18: Sulphur Dioxdie emsissions
B19: Oxides of Notrigen emissions
B20: Total Organic Carbon emissions
B21: Particulate Matter emissions
B22: Carbon Monoxide emissions
A26: Version Control
A27: Section | B27: Information | H27: Date
A34: Distribution
A35: Copy | B35: Name, Role | H35: No.
A36: 1 | B36: SUEZ Operations Team
A37: 2 | B37: SUEZ EIR Team
A38: 3 | B38: Environment Agency
A44: This report is required under the Industrial Emissions Directive’s Article 55(2) requirements on reporting and public information on waste incineration plants and co-incineration plants, which require the operator to produce an annual report on the functioning and monitoring of the plant and make it available to the public.

Sheet Facility Info
A1: =+'Cover Page'!$B$29 -> Annual Performance Report 2021 | E1: =+'Cover Page'!$B$33 -> SUEZ Suffolk Energy from Waste Facility
A3: Plant Description and Design | K3: Notes:
A5: This non-hazardous waste incinerator operates 24/7 across two furnace lines and can receive up to 295,000 tonnes of municipal waste and commercial/Industrial waste per annum. The heat produced by waste incineration is used to raise superheated steam which generates approximately 179,000 MWh/annum of electricity. Activities associated with the incineration are receipt and storage of municipal waste and commercial/industrial waste, production of steam and electricity, abatement of flue gas and handling of Incinerator Bottom Ash (IBA) and Air Pollution Control Residue (APCR). Suffolk EfW commissioning finished on 1st December 2014, when the plant was handed over from the EPC contractor to SUEZ UK. Permit conditions have applied since this date. The data included in this report corresponds to the following period: 1st January 2021 to 31st December 2021. | K5: Include summary of plant design, design capacity, no. of combustion lines, electrical and heat capacity and any other general information that descibes the facility, its location and purpose
A20: Summary of Operational Processes and Procedures
A22: RECEPTION HALL & BUNKER Incoming waste is delivered to site by refuse collection trucks. It is then checked in, weighed and delivered into the reception hall. A large reception hall allows for refuse collection trucks to manoeuvre and tip waste safely. Air needed for combustion is drawn into the furnace from here so that negative pressure is maintained in order to avoid odour and dust escaping the building. Waste vehicles reverse to a wheel stop and tip their loads into a large concrete bunker. Mixing of waste occurs as the cranes driver sorts the waste looking for unsuitable material to be removed, and to improve the homogeneity of the incinerator feedstock. CONTROL ROOM The plant’s control room centralises the operation of all equipment, including the grab cranes used to mix and load waste into a hopper that feeds the furnace. All on-site functions are monitored automatically and manually. Its systems verify in real time that equipment is functioning properly, continuously monitor the combustion gas, and maximise the efficiency of the entire EfW process. GRATE AND BOILER Waste is lifted into the charging hoppers by the crane. From here it falls into the furnace-charging chute and then is introduced onto the grate system by hydraulic feeders for incineration. An auxiliary burner can be used to help keeping the temperature above 850°C if required. The thermal energy released from the burning is used to convert water to super-heated steam along a boiler composed of 6 vertical passes. At high pressure, this steam drives a turbine to generate electricity. ELECTRICITY GENERATION Electricity is generated at 11kv, with an electric production of 203,863 MWh/annum and exporting 180,346 MWh/annum to the national grid. INCINERATOR BOTTOM ASH (IBA) Ash left on the grate after incineration is carried by conveyor, after quenching, to the IBA processing facility. Up to 65,000 tonne of IBA is processed on site by the removal of ferrous and non-ferrous metal, stabilised and separated into fraction sizes of IBA prior to the export from site of the processed IBA and metals for re-use. EMISSION CONTROL & AIR POLLUTION CONTROL RESIDUE (APCR) The gases from the furnace are subject to a rigorous cleaning process involving urea as selective non-catalytic reduction (SNCR), lime and active carbon injections. This removes oxides of nitrogen, acidic gases, dioxins, and heavy metals from the gas stream. The cleaned gas passes through fine-fabric bag filters to remove solid particles before it is emitted through the stack. The resultant APCR residue, or fly-ash, contains particles from the incineration process, lime used in the flue gas treatment, salts and carbon dust. It is stored in a sealed silo until it is tankered away for recycling. EMISSIONS MONITORING As they pass through the stack, the residual flue gases from the process are continuously monitored before release. This data is relayed automatically to the control room. | K22: Include summary of key processes and procedures such as (but not limited to); waste reception, control rooms, grate, bed and bolier, energy & heat generation, cooling systems, residue management, emission controls, health and safety systems, maintenance

Sheet Operational Data
A1: =+'Cover Page'!$B$29 -> Annual Performance Report 2021 | E1: =+'Cover Page'!$B$33 -> SUEZ Suffolk Energy from Waste Facility
A3: Operational Data | K3: Notes:
A4: Plant Size | B4: 295000 | D4: tonnes pa | E4: =160*1000/3600*2 -> 88.88888889 | F4: MWth | G4: 26 | H4: MWe | K4: * - RDF to include SRF
A5: No. of combustion lines | B5: 2 | D5: No. of Turbines: | F5: 1 | K5: ** - CHP plants only
K6: 2020 updates include; heat in MWh, water in Litres, NCV in MJ/kg
A7: Waste types received | B7: Unit | C7: Q1 | D7: Q2 | E7: Q3 | F7: Q4 | G7: Year Total | H7: %
A8: Household / Local Authority | B8: tonnes | C8: 65382 | D8: 58333 | E8: 56269 | F8: 53464 | G8: =SUM(C8:F8) -> 233448 | H8: =IF(G8>0,G8/$G$18,"-") -> 0.8005514233 | K8: Availabiity Definition: 'the availability of a line is to be calculated by the number of hours the line reported Continuously Monitored emission levels to the Regulator through the calendar year divided by the total number of hours in that year. The overall plant availability is calculated as the Mean of all lines in the plant. For clarity this includes periods of Other Than Normal Operating Conditions (OTNOC) and abnormal operation.' Rationale: The primary function of an Energy from Waste facility is the disposal of waste. It follows therefore that the availability of a plant is determined by the period of time a facility spends undertaking this activity.
A9: Commercial & Industrial | C9: 11914 | D9: 10172 | E9: 12927 | F9: 19157 | G9: =SUM(C9:F9) -> 54170 | H9: 0.1857624422
A10: Hazardous | C10: - | D10: - | E10: - | F10: - | G10: 0 | H10: -
A11: Clinical | C11: 1000 | D11: 650 | E11: 1108 | F11: 1233 | G11: 3991 | H11: 0.01368613452
A12: Waste wood (biomass) | G12: 0 | H12: -
A13: Refuse Derived Fuel * - H'hold/LA | G13: =SUM(C13:F13) -> 0 | H13: -
A14: Refuse Derived Fuel * - C&I | G14: 0 | H14: -
A15: Other [Please specify] | G15: 0 | H15: -
A16: Other [Please specify]
A17: Other [Please specify]
A18: Total waste combusted | C18: =SUM(C8:C17) -> 78296 | D18: =SUM(D8:D17) -> 69155 | E18: =SUM(E8:E17) -> 70304 | F18: =SUM(F8:F17) -> 73854 | G18: =SUM(G8:G17) -> 291609 | H18: =IF(G18>0,G18/$G$18,"-") -> 1
A19: Rejected Waste | F19: 11.54 | G19: =SUM(C19:F19) -> 11.54 | H19: =IF(G19>0,G19/$G$18,"-") -> 3.957353854e-05
A20: Unprocessed waste transferred out | G20: =SUM(C20:F20) -> 0 | H20: =IF(G20>0,G20/$G$18,"-") -> -
A22: Energy Useage / Export | B22: Unit | C22: Q1 | D22: Q2 | E22: Q3 | F22: Q4 | G22: Year Total | H22: KWh/te
A23: Power Generated | B23: MWh | C23: 53265.7512 | D23: 49097.8253 | E23: 48986.65148 | F23: 52512.43642 | G23: =SUM(C23:F23) -> 203862.6644 | H23: =IF(G23>0,G23*1000/$G$18,"-") -> 699.0959278
A24: Power Exported | C24: 47340.6 | D24: 43241.433 | E24: 43145.666 | F24: 46617.908 | G24: =SUM(C24:F24) -> 180345.607 | H24: =IF(G24>0,G24*1000/$G$18,"-") -> 618.4500718
A25: Power Used on site | C25: 5925.1512 | D25: 5856.392304 | E25: 5840.985477 | F25: 5894.528416 | G25: =SUM(C25:F25) -> 23517.0574 | H25: 80.64585591
A26: Power Imported | C26: 13.102 | D26: 3.081 | E26: 128.2 | F26: 77.683 | G26: 222.066 | H26: 0.7615197062
A27: Parasitic Load | B27: % | C27: =IF(C23>0,1-C24/(C23+C26),"-") -> 0.1114561002 | D27: =IF(D23>0,1-D24/(D23+D26),"-") -> 0.1193353391 | E27: =IF(E23>0,1-E24/(E23+E26),"-") -> 0.1215352444 | F27: =IF(F23>0,1-F24/(F23+F26),"-") -> 0.1135614728 | G27: =IF(G23>0,1-G24/(G23+G26),"-") -> 0.116319939
A28: Thermal Energy Produced ** | B28: MWh | G28: =SUM(C28:F28) -> 0 | H28: -
A29: Thermal Energy Exported ** | G29: 0 | H29: -
A30: R1 value | C30: 0.82 | G30: Operational
A32: Waste Disposal & Recovery | B32: Unit | C32: Q1 | D32: Q2 | E32: Q3 | F32: Q4 | G32: Year Total | H32: % inputs
A33: APC Residues - produced | B33: tonnes | C33: 1994.5 | D33: 1759 | E33: 1631 | F33: 1765 | G33: =SUM(C33:F33) -> 7149.5 | H33: =IF(G33>0,G33/$G$18,"-") -> 0.02451741887
A34: IBA - produced | C34: 14572.04 | D34: 11230.82 | E34: 17357.22 | F34: 10413.72 | G34: 53573.8 | H34: =IF(G34>0,G34/$G$18,"-") -> 0.1837179237
A35: Metals recycling | C35: 3022.66 | D35: 2641.02 | E35: 2670.12 | F35: 2389.24 | G35: =SUM(C35:F35) -> 10723.04 | H35: =IF(G35>0,G35/$G$18,"-") -> 0.03677197892
A36: Other | C36: 0 | D36: 0 | E36: 0 | F36: 0 | G36: =SUM(C36:F36) -> 0 | H36: =IF(G36>0,G36/$G$18,"-") -> -
A37: Other | C37: 0 | D37: 0 | E37: 0 | F37: 0 | G37: 0 | H37: =IF(G37>0,G37/$G$18,"-") -> -
A38: Other | C38: 0 | D38: 0 | E38: 0 | F38: 0 | G38: 0 | H38: =IF(G38>0,G38/$G$18,"-") -> -
A40: Raw Material Usage | B40: Unit | C40: Q1 | D40: Q2 | E40: Q3 | F40: Q4 | G40: Year Total | H40: kg or Ltr /te
A41: Mains Water | B41: ltrs | C41: 10628.12 | D41: 10566.06 | E41: 9184.69 | F41: 8752.73 | G41: =SUM(C41:F41) -> 39131.6 | H41: =IF(G41>0,G41/$G$18,"-") -> 0.1341920174
A42: Other Water | B42: ltrs | G42: 0 | H42: =IF(G42>0,G42/$G$18,"-") -> -
A43: Ammonia | B43: kgs | G43: 0 | H43: =IF(G43>0,G43/$G$18,"-") -> -
A44: Urea | B44: kgs | C44: 174690.6209 | D44: 184925.0182 | E44: 182758.4999 | F44: 166538.0342 | G44: =SUM(C44:F44) -> 708912.1732 | H44: =IF(G44>0,G44/$G$18,"-") -> 2.431036673
A45: Activated Carbon | B45: kgs | C45: 22420.21771 | D45: 20561 | E45: 23058 | F45: 17734 | G45: 83773.21771 | H45: =IF(G45>0,G45/$G$18,"-") -> 0.2872792599
A46: Lime / hydrated lime | B46: kgs | C46: 738924.0651 | D46: 505097 | E46: 520285 | F46: 378142 | G46: 2142448.065 | H46: 7.346988828
A47: Fuel oil | B47: ltrs | C47: 64206.08909 | D47: 83704.55514 | E47: 45005.53031 | F47: 83531.09522 | G47: 276447.2698 | H47: 0.9480066451
A48: Gas | B48: cf | C48: 0 | D48: 0 | E48: 0 | F48: 0 | G48: 0
A49: Other | C49: 0 | D49: 0 | E49: 0 | F49: 0 | G49: 0
A51: Summary | B51: Line/Unit | C51: Q1 | D51: Q2 | E51: Q3 | F51: Q4 | G51: Year Total | J51: Hrs in year
A52: Availability of waste combustion by line, hrs | B52: 1 | C52: 2047.813 | D52: 1998.3 | E52: 1810.7325 | F52: 2176.996 | G52: =SUM(C52:F52) -> 8033.8415 | H52: =G52/$J$52 -> 0.9171051941 | J52: 8760
B53: 2 | C53: 2158.78 | D53: 1962.951 | E53: 2062.9376 | F53: 2006.2 | G53: 8190.8686 | H53: =G53/$J$52 -> 0.9350306621
B54: 3 | G54: 0
B55: 4 | G55: 0
B56: 5 | G56: =SUM(C56:F56) -> 0
A57: Overall Availability, mean avg. of all lines, hrs | G57: =AVERAGE(G52:G53) -> 8112.35505 | H57: =G57/$J$52 -> 0.9260679281
A58: Hours of turbine operations, hrs | B58: 1 | C58: 2154.995 | D58: 2183.408 | E58: 2045.267 | F58: 2155.926 | G58: 8539.596 | H58: =G58/$J$52 -> 0.974839726
A59: Hours of turbine operations, hrs | B59: 2 | G59: 0
A60: Hours of heat / steam export | G60: 0 | H60: =IF(B60>0,G59/J52,"n/a") -> n/a
A61: Net Calorific Value of waste | B61: MJ/kg | C61: 8777.007642 | D61: 8903.897043 | E61: 9058.017258 | F61: 8932.191955 | H61: -
A62: Abnormal Events | B62: qty. | G62: 0 | H62: =IF(G62>0,"yes","no") -> no
A63: Abnormal operation | B63: hours | G63: 0 | H63: =+(G63)/J52 -> 0
A64: Permit Breaches | B64: qty. | D64: 1 | F64: 2 | G64: 3 | H64: =IF(G64>0,"yes","no") -> yes

Sheet Operational Summary
A1: =+'Cover Page'!$B$29 -> Annual Performance Report 2021 | E1: =+'Cover Page'!$B$33 -> SUEZ Suffolk Energy from Waste Facility
A3: Summary of Plant Operations and Maintenance during the reporting year | K3: Notes:
A5: Despite the ongoing pandemic related challenges of 2021 Suffolk EFW has had a very good year. The year has been dominated by steady running, which has seen the site demonstrate exceptional levels of availability. The site successfully achieved both its scheduled outages where some work was undertaken on the refractory areas of the furnace with further replacements scheduled in 2022. Boiler thickness checks demonstrated that the boiler tubes are at an acceptable level but indicated that two banks of superheaters will be replaced in 2022. Standard inspections of the bag filters and flue gas treatment systems have resulted in only minor, routine servicing. The urea handling systems continue to operate well. | K5: Include summary of key operational and/or mainteanance activity undertaken in the year, such as any major component upgrades and/or replacements
A29: Summary of Residue Handling for the reporting year
A31: There were no noteable residue handling issues on site over 2021. The systems were fully maintained and remained operational throughout. | K31: Include in here a summary of residue handling regimes and destinations

Sheet Perf. Form 1
A1: =+'Cover Page'!C39 -> 2021 | B1: Annual Reporting Performance Form 1
A3: =+'Cover Page'!B31 -> Permit EPR/WP3438HZ | F3: Operator: | G3: =+'Cover Page'!B37 -> SUEZ Recycling and Recovery
A4: Facility: | B4: =+'Cover Page'!B33:I33 -> SUEZ Suffolk Energy from Waste Facility | F4: Form: | G4: Performance 1
A6: Reporting Period from: | D6: 2021-01-01 | F6: to: | G6: 2021-12-31
A8: =+A1 -> 2021 | B8: Annual Reporting of Waste Disposal and Recovery
A9: Waste Description | C9: Disposal Route(s) | E9: Disposal Tonnes | G9: Recovery Tonnes | I9: % / tonne of waste incinerated
A10: 1) Hazardous Wastes
A11: APC Residues | C11: D05 | E11: 7149 | I11: =IF((E11+G11)>0,(E11+G11)/'Operational Data'!$G$18, "-") -> 0.02451570425
A12: IBA | I12: =IF((E12+G12)>0,(E12+G12)/'Operational Data'!$G$18, "-") -> -
I13: =IF((E13+G13)>0,(E13+G13)/'Operational Data'!$G$18, "-") -> -
I14: =IF((E14+G14)>0,(E14+G14)/'Operational Data'!$G$18, "-") -> -
A15: Total Hazardous Waste | E15: =SUM(E11:F14) -> 7149 | G15: =SUM(G11:H14) -> 0 | I15: =IF((E15+G15)>0,(E15+G15)/'Operational Data'!$G$18, "-") -> 0.02451570425
A17: 2) Non-Hazardous Wastes
A18: IBA | C18: R05 | G18: 53598 | I18: =IF((E18+G18)>0,(E18+G18)/'Operational Data'!$G$18, "-") -> 0.1838009115
A19: Ferrous Metal | C19: R04 | G19: 7320 | I19: =IF((E19+G19)>0,(E19+G19)/'Operational Data'!$G$18, "-") -> 0.0251021059
A20: Non Ferrous Metal | C20: R04 | G20: 3383 | I20: =IF((E20+G20)>0,(E20+G20)/'Operational Data'!$G$18, "-") -> 0.01160115086
I21: =IF((E21+G21)>0,(E21+G21)/'Operational Data'!$G$18, "-") -> -
I22: =IF((E22+G22)>0,(E22+G22)/'Operational Data'!$G$18, "-") -> -
A23: Total Non-Hazardous Waste | E23: =SUM(E18:F22) -> 0 | G23: =SUM(G18:H22) -> 64301 | I23: =IF((E23+G23)>0,(E23+G23)/'Operational Data'!$G$18, "-") -> 0.2205041683
A24: TOTAL WASTE | E24: =+E23+E15 -> 7149 | G24: =+G23+G15 -> 64301 | I24: =IF((E24+G24)>0,(E24+G24)/'Operational Data'!$G$18, "-") -> 0.2450198725
A26: Operator’s comments :
A31: =+A1 -> 2021 | B31: Annual Reporting of Water and Other Raw Material Usage
A32: Raw Material | E32: Usage | G32: Unit | H32: Specific Useage | J32: Unit
A33: Mains Water | E33: =+'Operational Data'!G41 -> 39131.6 | G33: m3 | H33: =IF(E33>0,E33/'Operational Data'!$G$18,"-") -> 0.1341920174 | J33: m3/te
A34: Total Water | E34: =+'Operational Data'!G42+'Operational Data'!G41 -> 39131.6 | G34: m3 | H34: =IF(E34>0,E34/'Operational Data'!$G$18,"-") -> 0.1341920174 | J34: m3/te
A35: Urea / Ammonia | E35: =+'Operational Data'!G43 -> 0 | G35: kg | H35: =IF(E35>0,E35/'Operational Data'!$G$18,"-") -> - | J35: kg/te
A36: Activated Carbon | E36: =+'Operational Data'!G45 -> 83773.21771 | G36: kg | H36: =IF(E36>0,E36/'Operational Data'!$G$18,"-") -> 0.2872792599 | J36: kg/te
A37: Lime / hydrated lime / Sodium Bicarb. | E37: =+'Operational Data'!G46 -> 2142448.065 | G37: kg | H37: =IF(E37>0,E37/'Operational Data'!$G$18,"-") -> 7.346988828 | J37: kg/te
A39: Operator’s comments :
A43: =+A31 -> 2021 | B43: Annual Reporting of other performance indicators
A44: Parameter | C44: Results by Line
C45: A1 | D45: A2 | E45: A3 | F45: A4 | G45: A5 | I45: Turbine 1 | J45: Turbine 2
A46: Operating hours for the year, hours | C46: 8034 | D46: 8191 | I46: 8540
A47: Number of periods of abnormal operation, qty.
A48: Cumulative hours of abnormal operation for this year, hours
A50: Operator’s comments :
A54: Signed: | B54: Richard Watkins | G54: Date: | H54: 2021-01-26

Sheet Energy Form 1
A1: =+'Cover Page'!C39 -> 2021 | B1: Annual Reporting of Energy Usage/Export
A3: =+'Cover Page'!B31 -> Permit EPR/WP3438HZ | F3: Operator: | G3: =+'Cover Page'!B37 -> SUEZ Recycling and Recovery
A5: Facility: | B5: =+'Cover Page'!B33:I33 -> SUEZ Suffolk Energy from Waste Facility | F5: Form: | G5: Energy 1
A7: Reporting Period from: | D7: =+'Perf. Form 1'!D6 -> 2021-01-01 | F7: to: | G7: =+'Perf. Form 1'!G6:H6 -> 2021-12-31
A9: Energy Source | D9: Energy Usage | F9: Unit | G9: Specific Useage (KWh/tonne incinerated
A10: Electricity Produced | D10: =+'Operational Data'!G23 -> 203862.6644 | F10: MWh | G10: =+'Operational Data'!H23 -> 699.0959278
A11: Electricity Imported | D11: =+'Operational Data'!G26 -> 222.066 | F11: MWh | G11: =+'Operational Data'!H26 -> 0.7615197062
A12: Electricity Exported | D12: =+'Operational Data'!G24 -> 180345.607 | F12: MWh | G12: =+'Operational Data'!H24 -> 618.4500718
A13: Gas Oil | D13: =('Operational Data'!G47/1000)*0.845 -> 233.5979429 | F13: tonnes
A14: Steam/hot water exported | D14: =+'Operational Data'!G29 -> 0 | F14: GWh | G14: =+'Operational Data'!H29 -> -
A18: Operator’s comments :
A29: Signed: | B29: Richard Watkins | G29: Date: | H29: 2022-01-26

Sheet Permit Compliance
A1: =+'Cover Page'!$B$29 -> Annual Performance Report 2021 | E1: =+'Cover Page'!$B$33 -> SUEZ Suffolk Energy from Waste Facility
A3: Summary of Permit Compliance
A5: Compliance with permit limits for continuously monitored pollutants
A7: The plant met its emission limits as shown in the table below:
A8: Substance | C8: Percentage time compliant during operation | L8: Notes:
C9: Half-hourly limit | F9: Daily limit | L9: Report to 2 decimal places, i.e. xx.xx% Please provide a brief summary of each notification or non-compliance in the table (rather than just referring to notifications that were sent to the Regulator).
A10: Particulates | C10: 1 | F10: 1
A11: Oxides of nitrogen | C11: 1 | F11: 1
A12: Sulphur dioxide | C12: 0.9999 | F12: 1
A13: Carbon monoxide | C13: 100.00% (95% of 10-min averages) | F13: 1
A14: Total organic carbon | C14: 0.9999 | F14: 1
A15: Hydrogen chloride | C15: 1 | F15: 1
A16: Hydrogen fluoride | C16: 1 | F16: 1
C17: 1 | F17: 1
A19: Summary of any notifications or non-compliances under the permit
A20: Date | B20: Summary of notification or non-compliance [including Line/Reference] | E20: Reason | H20: Measures taken to prevent reoccurrence
A21: 2021-06-03 | B21: Line 1 (A1) TOC half hourly ELV breach | E21: ID fan trip and disturbed combustion conditions | H21: Changes to procedures in relation to plant operation during use of online cleaning systems to prevent excessive ID fan vibration.
A22: 2021-10-07 | B22: Loss of carbon dosing to Line 1 following incorrect installation of feed screw during maintenance outage. | E22: Functional tests at plant start up didn’t include a direction of rotation check. | H22: Maintenance procedures revised and an emissions assessment report provided by external consultants to assess potential impact.
A23: 2021-12-23 | B23: Line 1 (A1) SO2 half hourly ELV breach | E23: High sulphate containing waste stream and difficulty mixing waste due to pit levels during the Christmas period. | H23: Inreased use of third party sites waste audits and changes to spread peak waste deliveris more evenly over the working day. Use of lime dosing to reduce SO2 concentrations in flue gas.
A27: Summary of any complaints received and actions to taken to resolve them.
A28: Date | B28: Summary of complaint [including Line/Reference] | E28: Reason * | H28: Measures taken to prevent reoccurrence
A29: 2021-03-31 | B29: Burning smell reported by complainant. | E29: Not considered to originate from site | H29: No operational issues and odour checks carried out.
A30: 2021-06-12 | B30: Acrid smell of burning report by complainant | E30: Not considered to originate from site | H30: No issues identified on site and wind direction would not support the issue being site derived.
A31: 2021-11-14 | B31: Specs of black resiude settling on complainants car. | E31: Not considered to originate from site | H31: CEMS report show dust/particulate emissions within permit limits and very low. EA notified of the complaint.
E34: * including whether substantiated by the operator or the EA

Sheet Improvements
A1: =+'Cover Page'!$B$29 -> Annual Performance Report 2021 | E1: =+'Cover Page'!$B$33 -> SUEZ Suffolk Energy from Waste Facility
A3: Summary of Plant Improvements
A5: Summary of any efficiency improvements that have been completed within the year.
A6: An improved cleaning regieme of the Air Cooled Condensers has been implemented in order to maximise the electrical output and hence cycle efficiency of the plant.
A16: Summary of any permit improvement conditions that have been completed within the year and the resulting environmental benefits.
A17: Nil
A27: Summary of any changes to the plant or operating techniques which required a variation to the permit and a summary of the resulting environmental impact.
A28: Nil
A38: Summary of any other improvements made to the plant or planned to be made and a summary of the resulting environmental benefits.
A39: Nil

Sheet Public Liasion
A1: =+'Cover Page'!$B$29 -> Annual Performance Report 2021 | E1: =+'Cover Page'!$B$33 -> SUEZ Suffolk Energy from Waste Facility
A3: Details of Public & Stakeholder Liasion
A5: Summary of events held during the reporting year.
A6: Date | C6: Description
A7: March & July | C7: Community Liaison Group meetings were held via video conferencing
A9: November | C9: A Community Liaison Group Meeting was held on site.
A16: List of events planned for next year
A17: Date | C17: Description
A18: March, July & November | C18: Community Liaison Groups to be held on site (if permitted). Meeting will be held via video conferencing as an alternative.
A29: If you wish to be involved in the public liasion programme, please contact Oliver Morrall oliver.morrall@suez.com

Sheet Residue Quality
A1: =+'Cover Page'!$B$29 -> Annual Performance Report 2021 | E1: =+'Cover Page'!$B$33 -> SUEZ Suffolk Energy from Waste Facility
A3: Residue Quality Monitoring Requirements
A5: Summary of monitoring undertaken and compliance
A6: The samples for the quarterly IBA analysis were undertaken on the 12/01/2021, the 14/04/2021, the 20/07/2021 and the 18/10/2021.
A8: There were no issues identified by the analysis and all results for TOC were below the permit limit. LOI analysis is not required as TOC analysis is provided.
A13: Commentary on any specific events
A14: Date & Event | C14: Description
A27: Residue Quality Monitoring Results
A28: Parameter (unit) | C28: Limit | D28: Normal Operation
D29: Bottom ash | F29: APC Residues
A30: Loss on Ignition (average %) | C30: <5% | D30: N/A
A31: Total Organic Carbon (average %) | C31: <3% | D31: 1.24
A32: No. of Assessments Undertaken | C32: --- | D32: 4 | F32: 4
A33: No. of Hazardous Results | C33: --- | D33: 0
A35: Comments :
A36: 12/01/2021 TOC - 1.26 % 14/04/2021 TOC - 1.39 % 20/07/2021 TOC - 1.13 % 18/10/2021 TOC - 1.18 %

Sheet Water
A1: =+'Cover Page'!$B$29 -> Annual Performance Report 2021 | E1: =+'Cover Page'!$B$33 -> SUEZ Suffolk Energy from Waste Facility
A3: Emissions to Water
A5: Summary of monitoring undertaken and compliance
A13: Commentary on any specific events
A14: Date & Event | C14: Description
A22: Emissions to Water / Sewer
A23: Parameter | D23: Monitoring Frequency | G23: Limit | H23: Target | I23: Max. | J23: Average

Sheet Air (periodic)
A1: =+'Cover Page'!$B$29 -> Annual Performance Report 2021 | E1: =+'Cover Page'!$B$33 -> SUEZ Suffolk Energy from Waste Facility
A3: Emissions to Air (periodically monitored)
A5: Summary of monitoring undertaken, standards used and compliance | M5: Notes:
A6: The periodic emissions testing is carried out bi-annually in accordance with the requirements of the Permit by Element Materials Technology. The scheduled emissions testing visits were carried out during March and September 2021. A laboratory error affected the Dioxin/PCB samples results obtained uring the September visit such that the testing contractor decided not to report these results. A further site visit is planned for the 11th/12th January 2022 to obtain further samples for Dioxin/PCB analysis. | M6: Template may require adjustment for any bespoke monitoring requirements of permit.
A9: Results of emissions to air that are periodically monitored
A10: Substance | C10: Ref. Period | D10: Emission Limit Value | F10: Average | M10: User to add additional tables as necessary, depending on whether quarterly or bi-annual reporting is required for the compliance year
F11: A1 | G11: A2 | H11: A3 | I11: A4 | J11: A5
A12: Hydrogen fluoride | C12: 1 hr | D12: 2 mg/m3 | F12: 0.034 | G12: 0.0315
A13: Cd and Th and their compounds | C13: 6-8hrs | D13: 0.05 mg/m3 | F13: 0.000875 | G13: 0.00089
A14: Hg and its compounds | C14: 6-8hrs | D14: 0.05 mg/m3 | F14: 0.000965 | G14: 0.00205
A15: Sb, As, Pb, Cr, Co, Cu, Mn, Ni, V and their compounds | C15: 6-8hrs | D15: 0.5 mg/m3 | F15: 0.018 | G15: 0.0265
A16: Dioxins & Furans (I-TEQ) | C16: 6-8hrs | D16: 0.1 ng/m3 | F16: 0.0008 | G16: 0.00063 | H16: H1 only
A17: PCBs (WHO-TEQ Humans / Mammals) | C17: 6-8hrs | D17: None set ng/m3 | F17: 0.00011 | G17: 0.00013 | H17: H1 only
A18: PCBs (WHO-TEQ Fish) | C18: 6-8hrs | D18: None set ng/m3 | F18: 5.4e-06 | G18: 6.7e-06 | H18: H1 only
A19: PCBs (WHO-TEQ Birds) | C19: 6-8hrs | D19: None set ng/m3 | F19: 0.00029 | G19: 0.00035 | H19: H1 only
A20: Dioxins & Furans (WHO-TEQ Humans / Mammals) | C20: 6-8hrs | D20: None set ng/m3 | F20: 0.00085 | G20: 0.00057 | H20: H1 only
A21: Dioxins & Furans (WHO-TEQ Fish) | C21: 6-8hrs | D21: None set ng/m3 | F21: 0.00091 | G21: 0.00066 | H21: H1 only
A22: Dioxins & Furans (WHO-TEQ Birds) | C22: 6-8hrs | D22: None set ng/m3 | F22: 0.0015 | G22: 0.0012 | H22: H1 only
A23: Anthanthrene | C23: 6-8hrs | D23: None set µg/m3 | F23: 0.00095 | G23: 0.0012
A24: Benzo(a)anthracene | C24: 6-8hrs | D24: None set µg/m3 | F24: 0.00095 | G24: 0.0012
A25: Benzo(a)pyrene | C25: 6-8hrs | D25: None set µg/m3 | F25: 0.00095 | G25: 0.0012
A26: Benzo(b)fluoranthene | C26: 6-8hrs | D26: None set µg/m3 | F26: 0.0012 | G26: 0.0012
A27: Benzo(b)naptho(2,1-d) thiophene | C27: 6-8hrs | D27: None set µg/m3 | F27: 0.00245 | G27: 0.0033
A28: Benzo(c)phenanthrene | C28: 6-8hrs | D28: None set µg/m3 | F28: 0.00095 | G28: 0.0012
A29: Benzo(ghi)perylene | C29: 6-8hrs | D29: None set µg/m3 | F29: 0.00095 | G29: 0.0012
A30: Benzo(k)fluoranthene | C30: 6-8hrs | D30: None set µg/m3 | F30: 0.00095 | G30: 0.0012
A31: Cholanthrene | C31: 6-8hrs | D31: None set µg/m3 | F31: 0.00095 | G31: 0.0012
A32: Chrysene | C32: 6-8hrs | D32: None set µg/m3 | F32: 0.0021 | G32: 0.0018
A33: Cyclopenta(cd)pyrene | C33: 6-8hrs | D33: None set µg/m3 | F33: 0.0016 | G33: 0.0012
A34: Dibenzo(ai)pyrene | C34: 6-8hrs | D34: None set µg/m3 | F34: 0.00095 | G34: 0.0012
A35: Dibenzo(ah)anthracene | C35: 6-8hrs | D35: None set µg/m3 | F35: 0.00095 | G35: 0.0012
A36: Fluoranthene | C36: 6-8hrs | D36: None set µg/m3 | F36: 0.11765 | G36: 0.0155
A37: Indeno(123-cd) pyrene | C37: 6-8hrs | D37: None set µg/m3 | F37: 0.00095 | G37: 0.0012
A38: Naphthalene | C38: 6-8hrs | D38: None set µg/m3 | F38: 0.19815 | G38: 0.144
A39: Comments :
A40: Where the laboratory result was reported as a Method Detection Limit, the result has been replaced with a value equal to the MDL. Where dioxins/furans have been reported at the MDL the value has been replaced with a value equal to 0.5 times the MDL as per guidance received from the Environment Agency (Ben Freeman). The above mercury results were obtained using the MID 14385 standard. Additional (triplicate) mercury tests were carried out in accordance with the EN 13211 standard on both lines during September 2021. The results are not currently required by the permit and are therefore not included in the above average results for A1 & A2. Q3/Q4 dioxins/furans and PCB analysis was affected by a lab error and the site testing had to be repeated during January 2022, the results are not yet available so the above data represents only the Q1/Q2 analysis data.

Sheet Air (CEMS)
A1: =+'Cover Page'!$B$29 -> Annual Performance Report 2021 | I1: =+'Cover Page'!$B$33 -> SUEZ Suffolk Energy from Waste Facility
A3: Emissions to Air (continously monitored)
P4: Notes:
A5: Summary of monitoring undertaken, standards used and compliance | P5: Template may require adjustment for any bespoke monitoring requirements of permit
P6: Report to 2 decimal places, i.e. xx.xx%
A11: Results of emissions to air that are continuously monitored (maximum and average values for each line)
A12: Substance | B12: Reference Period | C12: Emission Limit Value | D12: A1 | F12: A2 | H12: A3 | J12: A4 | L12: A5
D13: Max. | E13: Avg. | F13: Max. | G13: Avg. | H13: Max. | I13: Avg. | J13: Max. | K13: Avg. | L13: Max. | M13: Avg.
A14: Oxides of nitrogen | B14: Daily mean | C14: 200 mg/m3 | D14: =NOx!$O$19 -> 191.5 | E14: =NOx!$N$19 -> 179.868722 | F14: =NOx!$O$34 -> 186.6 | G14: =NOx!N34 -> 179.6658774
B15: ½ hourly mean | C15: 400 mg/m3 | D15: =NOx!$M$19 -> 362.3 | E15: =NOx!$L$19 -> 179.868722 | F15: =NOx!$M$34 -> 277.5 | G15: =NOx!L34 -> 179.6658774
A16: Particulates | B16: Daily mean | C16: 10 mg/m3 | D16: =Particulates!$O$19 -> 4.1 | E16: =Particulates!$N$19 -> 1.82002903 | F16: =Particulates!$O$34 -> 1.9 | G16: =Particulates!N34 -> 1.030416194
B17: ½ hourly mean | C17: 30 mg/m3 | D17: =Particulates!$M$19 -> 4.5 | E17: =Particulates!$L$19 -> 1.82002903 | F17: =Particulates!$M$34 -> 8.9 | G17: =Particulates!L34 -> 1.030416194
A18: Total Organic Carbon | B18: Daily mean | C18: 10 mg/m3 | D18: =TOC!$O$19 -> 0.9 | E18: =TOC!$N$19 -> 0.4202611955 | F18: =TOC!$O$34 -> 3 | G18: =TOC!N34 -> 0.412011903
B19: ½ hourly mean | C19: 20 mg/m3 | D19: =TOC!$M$19 -> 23.2 | E19: =TOC!$L$19 -> 0.4202611955 | F19: =TOC!$M$34 -> 15.8 | G19: =TOC!L34 -> 0.412011903
A20: Hydrogen chloride | B20: Daily mean | C20: 10 mg/m3 | D20: =HCl!$O$19 -> 6.5 | E20: =HCl!$N$19 -> 3.432019607 | F20: =HCl!$O$34 -> 6.29 | G20: =HCl!N34 -> 3.270087887
B21: ½ hourly mean | C21: 60 mg/m3 | D21: =HCl!$M$19 -> 30.6 | E21: =HCl!$L$19 -> 3.432019607 | F21: =HCl!$M$34 -> 21.37 | G21: =HCl!L34 -> 3.270087887
A22: Sulphur dioxide | B22: Daily mean | C22: 50 mg/m3 | D22: ='SO2'!$O$19 -> 45.5 | E22: ='SO2'!$N$19 -> 32.56040425 | F22: ='SO2'!$O$34 -> 45.8 | G22: ='SO2'!N34 -> 26.73262924
B23: ½ hourly mean | C23: 200 mg/m3 | D23: ='SO2'!$M$19 -> 211.3 | E23: ='SO2'!$L$19 -> 32.56040425 | F23: ='SO2'!$M$34 -> 174.2 | G23: ='SO2'!L34 -> 26.73262924
A24: Carbon monoxide | B24: Daily mean | C24: 50 mg/m3 | D24: ='CO 95% 10 min'!Q19 -> 7.9 | E24: ='CO 95% 10 min'!P19 -> 1.547294588 | F24: ='CO 95% 10 min'!Q34 -> 15 | G24: ='CO 95% 10 min'!P34 -> 0.9135768588
B25: 95%ile 10-min avg | C25: 150 mg/m3 | D25: =MAX('CO 95% 10 min'!M7:M18) -> 33.32940674 | E25: =E24 -> 1.547294588 | F25: =MAX('CO 95% 10 min'!M22:M33) -> 119.8748169 | G25: ='CO 95% 10 min'!N34 -> 0.9135768588
A26: Ammonia | B26: Daily mean | C26: No limit set
A27: * = delete or amend as appropriate
A28: Comments :

Sheet HCl
A1: =+'Cover Page'!$B$29 -> Annual Performance Report 2021 | E1: =+'Cover Page'!$B$33 -> SUEZ Suffolk Energy from Waste Facility
A3: Monitoring of Hydrogen Chloride emissions | D3: Whole Installation | G3: See Notes in Cell Q3 | J3: =+A3 -> Monitoring of Hydrogen Chloride emissions | N3: Per Combustion Line | Q3: Notes:
Q4: User to add logic to complete Whole installation, Table A5:G18. From the data in Per Combustion Line, Table J6:O79, subject to No. of lines installed
A5: mg/Nm3 | B5: 1/2 Hourly Reference Periods | E5: Daily Reference Periods
A6: =+'Cover Page'!C39 -> 2021 | B6: 1/2 hourly HCl ELV | C6: Monthly 1/2 hourly mean | D6: Highest 1/2 hourly maximum | E6: Daily HCl ELV | F6: Monthly daily mean | G6: Highest daily maximum | J6: =+A6 -> 2021 | K6: mg/Nm3 | L6: Monthly 1/2 hourly mean | M6: Monthly 1/2 hourly maximum | N6: Monthly daily mean | O6: Monthly daily maximum
A7: Jan | B7: 60 | C7: =AVERAGE(L7,L22) -> 2.992258065 | D7: =MAX(M7,M22) -> 8.49 | E7: 10 | F7: =AVERAGE(N7,N22) -> 2.992258065 | G7: =MAX(O7,O22) -> 5.47 | J7: A1 | K7: Jan | L7: 3.134193548 | M7: 8.49 | N7: 3.134193548 | O7: 5.47
A8: Feb | B8: 60 | C8: =AVERAGE(L8,L23) -> 2.433346561 | D8: =MAX(M8,M23) -> 10.02 | E8: 10 | F8: =AVERAGE(N8,N23) -> 2.433346561 | G8: =MAX(O8,O23) -> 5.68 | K8: Feb | L8: 2.437407407 | M8: 7.52 | N8: 2.437407407 | O8: 5.68
A9: Mar | B9: 60 | C9: 2.603765778 | D9: 30.6 | E9: 10 | F9: =AVERAGE(N9,N24) -> 2.603765778 | G9: 5.39 | K9: Mar | L9: 2.310434783 | M9: 30.6 | N9: 2.310434783 | O9: 3.29 | Q9: Whole Installation table A5:G18:
A10: Apr | B10: 60 | C10: 1.953065476 | D10: 11.02 | E10: 10 | F10: =AVERAGE(N10,N25) -> 1.953065476 | G10: 5.35 | K10: Apr | L10: 2.485714286 | M10: 7.91 | N10: 2.485714286 | O10: 5.35 | Q10: Mean: for 1/2 hourly and daily periods calculate mean of values across all operational combustion lines for the month
A11: May | B11: 60 | C11: 2.450645161 | D11: 8.23 | E11: 10 | F11: =AVERAGE(N11,N26) -> 2.450645161 | G11: 5.3 | K11: May | L11: 2.561290323 | M11: 6 | N11: 2.561290323 | O11: 4.38
A12: Jun | B12: 60 | C12: 3.789518519 | D12: 13.33 | E12: 10 | F12: =AVERAGE(N12,N27) -> 3.789518519 | G12: 6.4 | K12: Jun | L12: 3.555333333 | M12: 13.33 | N12: 3.555333333 | O12: 6.4
A13: Jul | B13: 60 | C13: 4.698824885 | D13: 21.37 | E13: 10 | F13: =AVERAGE(N13,N28) -> 4.698824885 | G13: 6.29 | K13: Jul | L13: 4.565714286 | M13: 13.24 | N13: 4.565714286 | O13: 6.22 | Q13: Maximum: for 1/2 hourly and daily periods use the highest value across all operational combustion lines for the month
A14: Aug | B14: 60 | C14: 4.986101224 | D14: 11.43 | E14: 10 | F14: =AVERAGE(N14,N29) -> 4.986101224 | G14: 6.38 | K14: Aug | L14: 5.004137931 | M14: 10.78 | N14: 5.004137931 | O14: 6.38
A15: Sep | B15: 60 | C15: 4.687236025 | D15: 10.17 | E15: 10 | F15: =AVERAGE(N15,N30) -> 4.687236025 | G15: 6.5 | K15: Sep | L15: 5.031428571 | M15: 9.7 | N15: 5.031428571 | O15: 6.5
A16: Oct | B16: 60 | C16: 3.28237013 | D16: 12.78 | E16: 10 | F16: =AVERAGE(N16,N31) -> 3.28237013 | G16: 6 | K16: Oct | L16: 3.429285714 | M16: 12.78 | N16: 3.429285714 | O16: 6
A17: Nov | B17: 60 | C17: 4.135351852 | D17: 11.8 | E17: 10 | F17: =AVERAGE(N17,N32) -> 4.135351852 | G17: 5.91 | K17: Nov | L17: 4.367037037 | M17: 11.57 | N17: 4.367037037 | O17: 5.91
A18: Dec | B18: 60 | C18: 2.20016129 | D18: 7.02 | E18: 10 | F18: =AVERAGE(N18,N33) -> 2.20016129 | G18: 4.64 | K18: Dec | L18: 2.302258065 | M18: 5.93 | N18: 2.302258065 | O18: 3.76
K19: Annual | L19: =AVERAGE(L7:L18) -> 3.432019607 | M19: =MAX(M7:M18) -> 30.6 | N19: =AVERAGE(N7:N18) -> 3.432019607 | O19: =MAX(O7:O18) -> 6.5
J21: =+A6 -> 2021 | K21: mg/Nm3 | L21: Monthly 1/2 hourly mean | M21: Monthly 1/2 hourly maximum | N21: Monthly daily mean | O21: Monthly daily maximum
J22: A2 | K22: Jan | L22: 2.850322581 | M22: 7.2 | N22: 2.850322581 | O22: 3.97
K23: Feb | L23: 2.429285714 | M23: 10.02 | N23: 2.429285714 | O23: 4.03
K24: Mar | L24: 2.897096774 | M24: 10.34 | N24: 2.897096774 | O24: 5.39
K25: Apr | L25: 1.420416667 | M25: 11.02 | N25: 1.420416667 | O25: 1.82
K26: May | L26: 2.34 | M26: 8.23 | N26: 2.34 | O26: 5.3
K27: Jun | L27: 4.023703704 | M27: 10.14 | N27: 4.023703704 | O27: 5.71
K28: Jul | L28: 4.831935484 | M28: 21.37 | N28: 4.831935484 | O28: 6.29
K29: Aug | L29: 4.968064516 | M29: 11.43 | N29: 4.968064516 | O29: 5.89
K30: Sep | L30: 4.343043478 | M30: 10.17 | N30: 4.343043478 | O30: 5.84
K31: Oct | L31: 3.135454545 | M31: 11.58 | N31: 3.135454545 | O31: 5.36
K32: Nov | L32: 3.903666667 | M32: 11.8 | N32: 3.903666667 | O32: 5.71
K33: Dec | L33: 2.098064516 | M33: 7.02 | N33: 2.098064516 | O33: 4.64
K34: Annual | L34: =AVERAGE(L22:L33) -> 3.270087887 | M34: =MAX(M22:M33) -> 21.37 | N34: =AVERAGE(N22:N33) -> 3.270087887 | O34: =MAX(O22:O33) -> 6.29
J36: =+A6 -> 2021 | K36: mg/Nm3 | L36: Monthly 1/2 hourly mean | M36: Monthly 1/2 hourly maximum | N36: Monthly daily mean | O36: Monthly daily maximum
J37: A3 | K37: Jan
K38: Feb
K39: Mar
K40: Apr
K41: May
K42: Jun
K43: Jul
K44: Aug
K45: Sep
K46: Oct
K47: Nov
A48: Comments : | K48: Dec
K49: Annual | L49: =AVERAGE(L37:L48) ->  | M49: =MAX(M37:M48) -> 0 | N49: =AVERAGE(N37:N48) ->  | O49: =MAX(O37:O48) -> 0
J51: =+A6 -> 2021 | K51: mg/Nm3 | L51: Monthly 1/2 hourly mean | M51: Monthly 1/2 hourly maximum | N51: Monthly daily mean | O51: Monthly daily maximum
J52: A4 | K52: Jan
K53: Feb
K54: Mar
K55: Apr
K56: May
K57: Jun
K58: Jul
K59: Aug
K60: Sep
K61: Oct
K62: Nov
K63: Dec
K64: Annual | L64: =AVERAGE(L52:L63) ->  | M64: =MAX(M52:M63) -> 0 | N64: =AVERAGE(N52:N63) ->  | O64: =MAX(O52:O63) -> 0
J66: =+A6 -> 2021 | K66: mg/Nm3 | L66: Monthly 1/2 hourly mean | M66: Monthly 1/2 hourly maximum | N66: Monthly daily mean | O66: Monthly daily maximum
J67: A5 | K67: Jan
K68: Feb
K69: Mar
K70: Apr
K71: May
K72: Jun
K73: Jul
K74: Aug
K75: Sep
K76: Oct
K77: Nov
K78: Dec
K79: Annual | L79: =AVERAGE(L67:L78) ->  | M79: =MAX(M67:M78) -> 0 | N79: =AVERAGE(N67:N78) ->  | O79: =MAX(O67:O78) -> 0

Sheet SO2
A1: =+'Cover Page'!$B$29 -> Annual Performance Report 2021 | E1: =+'Cover Page'!$B$33 -> SUEZ Suffolk Energy from Waste Facility
A3: Monitoring of Sulphur dioxide emissions | D3: Whole Installation | G3: See Notes in Cell Q3 | J3: =+A3 -> Monitoring of Sulphur dioxide emissions | N3: Per Combustion Line | Q3: Notes:
Q4: User to add logic to complete Whole installation, Table A5:G18. From the data in Per Combustion Line, Table J6:O79, subject to No. of lines installed
A5: mg/Nm3 | B5: 1/2 Hourly Reference Periods | E5: Daily Reference Periods
A6: =+'Cover Page'!C39 -> 2021 | B6: 1/2 hourly SO2 ELV | C6: Monthly 1/2 hourly mean | D6: Highest 1/2 hourly maximum | E6: Daily SO2 ELV | F6: Monthly daily mean | G6: Highest daily maximum | J6: =+A6 -> 2021 | K6: mg/Nm3 | L6: Monthly 1/2 hourly mean | M6: Monthly 1/2 hourly maximum | N6: Monthly daily mean | O6: Monthly daily maximum
A7: Jan | B7: 200 | C7: =AVERAGE(L7,L22) -> 38.34032258 | D7: =MAX(M7,M22) -> 161 | E7: 50 | F7: =AVERAGE(N7,N22) -> 38.34032258 | G7: =MAX(O7,O22) -> 45.5 | J7: A1 | K7: Jan | L7: 41.13225806 | M7: 161 | N7: 41.13225806 | O7: 45.5
A8: Feb | B8: 200 | C8: =AVERAGE(L8,L23) -> 34.12089947 | D8: =MAX(M8,M23) -> 174.2 | E8: 50 | F8: =AVERAGE(N8,N23) -> 34.12089947 | G8: =MAX(O8,O23) -> 45.8 | K8: Feb | L8: 36.47037037 | M8: 143.6 | N8: 36.47037037 | O8: 44.6
A9: Mar | B9: 200 | C9: =AVERAGE(L9,L24) -> 37.22412342 | D9: 165.8 | E9: 50 | F9: =AVERAGE(N9,N24) -> 37.22412342 | G9: 44 | K9: Mar | L9: 39.18695652 | M9: 156.8 | N9: 39.18695652 | O9: 43.6 | Q9: Whole Installation table A5:G18:
A10: Apr | B10: 200 | C10: =AVERAGE(L10,L25) -> 37.2985119 | D10: 115.9 | E10: 50 | F10: =AVERAGE(N10,N25) -> 37.2985119 | G10: 42.9 | K10: Apr | L10: 37.34285714 | M10: 115.9 | N10: 37.34285714 | O10: 42.9 | Q10: Mean: for 1/2 hourly and daily periods calculate mean of values across all operational combustion lines for the month
A11: May | B11: 200 | C11: =AVERAGE(L11,L26) -> 31.32442396 | D11: 162.2 | E11: 50 | F11: =AVERAGE(N11,N26) -> 31.32442396 | G11: 43.4 | K11: May | L11: 36.77741935 | M11: 162.2 | N11: 36.77741935 | O11: 43.4
A12: Jun | B12: 200 | C12: =AVERAGE(L12,L27) -> 25.19944444 | D12: 138.4 | E12: 50 | F12: =AVERAGE(N12,N27) -> 25.19944444 | G12: 39.4 | K12: Jun | L12: 31.57666667 | M12: 132.8 | N12: 31.57666667 | O12: 39.4
A13: Jul | B13: 200 | C13: =AVERAGE(L13,L28) -> 23.34925115 | D13: 109.7 | E13: 50 | F13: =AVERAGE(N13,N28) -> 23.34925115 | G13: 36.3 | K13: Jul | L13: 27.01785714 | M13: 93.3 | N13: 27.01785714 | O13: 36.3 | Q13: Maximum: for 1/2 hourly and daily periods use the highest value across all operational combustion lines for the month
A14: Aug | B14: 200 | C14: =AVERAGE(L14,L29) -> 22.42285873 | D14: 129.6 | E14: 50 | F14: =AVERAGE(N14,N29) -> 22.42285873 | G14: 40.5 | K14: Aug | L14: 26.15862069 | M14: 129.6 | N14: 26.15862069 | O14: 40.5
A15: Sep | B15: 200 | C15: =AVERAGE(L15,L30) -> 25.50217391 | D15: 82.1 | E15: 50 | F15: =AVERAGE(N15,N30) -> 25.50217391 | G15: 36.6 | K15: Sep | L15: 26 | M15: 82.1 | N15: 26 | O15: 36.6
A16: Oct | B16: 200 | C16: =AVERAGE(L16,L31) -> 22.13928571 | D16: 129 | E16: 50 | F16: =AVERAGE(N16,N31) -> 22.13928571 | G16: 34 | K16: Oct | L16: 25.37857143 | M16: 129 | N16: 25.37857143 | O16: 34
A17: Nov | B17: 200 | C17: =AVERAGE(L17,L32) -> 26.48851852 | D17: 136.1 | E17: 50 | F17: =AVERAGE(N17,N32) -> 26.48851852 | G17: 39.9 | K17: Nov | L17: 28.67037037 | M17: 113.4 | N17: 28.67037037 | O17: 39.9
A18: Dec | B18: 200 | C18: =AVERAGE(L18,L33) -> 32.3483871 | D18: 211.3 | E18: 50 | F18: =AVERAGE(N18,N33) -> 32.3483871 | G18: 40.8 | K18: Dec | L18: 35.01290323 | M18: 211.3 | N18: 35.01290323 | O18: 40.8
K19: Annual | L19: =AVERAGE(L7:L18) -> 32.56040425 | M19: =MAX(M7:M18) -> 211.3 | N19: =AVERAGE(N7:N18) -> 32.56040425 | O19: =MAX(O7:O18) -> 45.5
J21: =+A6 -> 2021 | K21: mg/Nm3 | L21: Monthly 1/2 hourly mean | M21: Monthly 1/2 hourly maximum | N21: Monthly daily mean | O21: Monthly daily maximum
J22: A2 | K22: Jan | L22: 35.5483871 | M22: 132.9 | N22: 35.5483871 | O22: 43.3
K23: Feb | L23: 31.77142857 | M23: 174.2 | N23: 31.77142857 | O23: 45.8
K24: Mar | L24: 35.26129032 | M24: 165.8 | N24: 35.26129032 | O24: 44
K25: Apr | L25: 37.25416667 | M25: 80.4 | N25: 37.25416667 | O25: 39.9
K26: May | L26: 25.87142857 | M26: 67.1 | N26: 25.87142857 | O26: 36.7
K27: Jun | L27: 18.82222222 | M27: 138.4 | N27: 18.82222222 | O27: 33.1
K28: Jul | L28: 19.68064516 | M28: 109.7 | N28: 19.68064516 | O28: 31.2
K29: Aug | L29: 18.68709677 | M29: 67 | N29: 18.68709677 | O29: 29.4
K30: Sep | L30: 25.00434783 | M30: 62.2 | N30: 25.00434783 | O30: 36.6
K31: Oct | L31: 18.9 | M31: 66.7 | N31: 18.9 | O31: 31.4
K32: Nov | L32: 24.30666667 | M32: 136.1 | N32: 24.30666667 | O32: 35.5
K33: Dec | L33: 29.68387097 | M33: 169 | N33: 29.68387097 | O33: 39.2
K34: Annual | L34: =AVERAGE(L22:L33) -> 26.73262924 | M34: =MAX(M22:M33) -> 174.2 | N34: =AVERAGE(N22:N33) -> 26.73262924 | O34: =MAX(O22:O33) -> 45.8
J36: =+A6 -> 2021 | K36: mg/Nm3 | L36: Monthly 1/2 hourly mean | M36: Monthly 1/2 hourly maximum | N36: Monthly daily mean | O36: Monthly daily maximum
J37: A3 | K37: Jan
K38: Feb
K39: Mar
K40: Apr
K41: May
K42: Jun
K43: Jul
K44: Aug
K45: Sep
K46: Oct
K47: Nov
A48: Comments : | K48: Dec
K49: Annual | L49: =AVERAGE(L37:L48) ->  | M49: =MAX(M37:M48) -> 0 | N49: =AVERAGE(N37:N48) ->  | O49: =MAX(O37:O48) -> 0
J51: =+A6 -> 2021 | K51: mg/Nm3 | L51: Monthly 1/2 hourly mean | M51: Monthly 1/2 hourly maximum | N51: Monthly daily mean | O51: Monthly daily maximum
J52: A4 | K52: Jan
K53: Feb
K54: Mar
K55: Apr
K56: May
K57: Jun
K58: Jul
K59: Aug
K60: Sep
K61: Oct
K62: Nov
K63: Dec
K64: Annual | L64: =AVERAGE(L52:L63) ->  | M64: =MAX(M52:M63) -> 0 | N64: =AVERAGE(N52:N63) ->  | O64: =MAX(O52:O63) -> 0
J66: =+A6 -> 2021 | K66: mg/Nm3 | L66: Monthly 1/2 hourly mean | M66: Monthly 1/2 hourly maximum | N66: Monthly daily mean | O66: Monthly daily maximum
J67: A5 | K67: Jan
K68: Feb
K69: Mar
K70: Apr
K71: May
K72: Jun
K73: Jul
K74: Aug
K75: Sep
K76: Oct
K77: Nov
K78: Dec
K79: Annual | L79: =AVERAGE(L67:L78) ->  | M79: =MAX(M67:M78) -> 0 | N79: =AVERAGE(N67:N78) ->  | O79: =MAX(O67:O78) -> 0

Sheet NOx
A1: =+'Cover Page'!$B$29 -> Annual Performance Report 2021 | E1: =+'Cover Page'!$B$33 -> SUEZ Suffolk Energy from Waste Facility
A3: Monitoring of Oxides of Nitrogen emissions | D3: Whole Installation | G3: See Notes in Cell Q3 | J3: =+A3 -> Monitoring of Oxides of Nitrogen emissions | N3: Per Combustion Line | Q3: Notes:
Q4: User to add logic to complete Whole installation, Table A5:G18. From the data in Per Combustion Line, Table J6:O79, subject to No. of lines installed
A5: mg/Nm3 | B5: 1/2 Hourly Reference Periods | E5: Daily Reference Periods
A6: =+'Cover Page'!C39 -> 2021 | B6: 1/2 hourly NOx ELV | C6: Monthly 1/2 hourly mean | D6: Highest 1/2 hourly maximum | E6: Daily NOx ELV | F6: Monthly daily mean | G6: Highest daily maximum | J6: =+A6 -> 2021 | K6: mg/Nm3 | L6: Monthly 1/2 hourly mean | M6: Monthly 1/2 hourly maximum | N6: Monthly daily mean | O6: Monthly daily maximum
A7: Jan | B7: 400 | C7: =AVERAGE(L7,L22) -> 180.0080645 | D7: =MAX(M7,M22) -> 219.1 | E7: 200 | F7: =AVERAGE(N7,N22) -> 180.0080645 | G7: =MAX(O7,O22) -> 182.3 | J7: A1 | K7: Jan | L7: 180.0290323 | M7: 219.1 | N7: 180.0290323 | O7: 182.3
A8: Feb | B8: 400 | C8: =AVERAGE(L8,L23) -> 179.3281085 | D8: =MAX(M8,M23) -> 257.2 | E8: 200 | F8: =AVERAGE(N8,N23) -> 179.3281085 | G8: =MAX(O8,O23) -> 182.4 | K8: Feb | L8: 179.2740741 | M8: 257.2 | N8: 179.2740741 | O8: 182.4
A9: Mar | B9: 400 | C9: 180.3528752 | D9: 292.9 | E9: 200 | F9: 180.3528752 | G9: 186.6 | K9: Mar | L9: 180.2347826 | M9: 292.9 | N9: 180.2347826 | O9: 183 | Q9: Whole Installation table A5:G18:
A10: Apr | B10: 400 | C10: 179.689881 | D10: 230.7 | E10: 200 | F10: 179.689881 | G10: 182.8 | K10: Apr | L10: 180.2380952 | M10: 227 | N10: 180.2380952 | O10: 182.8 | Q10: Mean: for 1/2 hourly and daily periods calculate mean of values across all operational combustion lines for the month
A11: May | B11: 400 | C11: 181.3866359 | D11: 267.4 | E11: 200 | F11: 181.3866359 | G11: 191 | K11: May | L11: 182.316129 | M11: 267.4 | N11: 182.316129 | O11: 191
A12: Jun | B12: 400 | C12: 180.0677778 | D12: 229.5 | E12: 200 | F12: 180.0677778 | G12: 181.2 | K12: Jun | L12: 180.0466667 | M12: 229.5 | N12: 180.0466667 | O12: 181.2
A13: Jul | B13: 400 | C13: 180.3954493 | D13: 277.5 | E13: 200 | F13: 180.3954493 | G13: 186.6 | K13: Jul | L13: 180.0392857 | M13: 205.5 | N13: 180.0392857 | O13: 180.8 | Q13: Maximum: for 1/2 hourly and daily periods use the highest value across all operational combustion lines for the month
A14: Aug | B14: 400 | C14: 180.8877086 | D14: 362.3 | E14: 200 | F14: 180.8877086 | G14: 188 | K14: Aug | L14: 181.0689655 | M14: 362.3 | N14: 181.0689655 | O14: 188
A15: Sep | B15: 400 | C15: 180.8619565 | D15: 276.5 | E15: 200 | F15: 180.8619565 | G15: 191.5 | K15: Sep | L15: 180.95 | M15: 276.5 | N15: 180.95 | O15: 191.5
A16: Oct | B16: 400 | C16: 179.8785714 | D16: 223.9 | E16: 200 | F16: 179.8785714 | G16: 180.2 | K16: Oct | L16: 179.9571429 | M16: 199.5 | N16: 179.9571429 | O16: 180.2
A17: Nov | B17: 400 | C17: 180.0231481 | D17: 287.6 | E17: 200 | F17: 180.0231481 | G17: 181.6 | K17: Nov | L17: 179.9962963 | M17: 287.6 | N17: 179.9962963 | O17: 180.9
A18: Dec | B18: 400 | C18: 174.3274194 | D18: 248.3 | E18: 200 | F18: 174.3274194 | G18: 182.8 | K18: Dec | L18: 174.2741935 | M18: 214.4 | N18: 174.2741935 | O18: 180.8
K19: Annual | L19: =AVERAGE(L7:L18) -> 179.868722 | M19: =MAX(M7:M18) -> 362.3 | N19: =AVERAGE(N7:N18) -> 179.868722 | O19: =MAX(O7:O18) -> 191.5
J21: =+A6 -> 2021 | K21: mg/Nm3 | L21: Monthly 1/2 hourly mean | M21: Monthly 1/2 hourly maximum | N21: Monthly daily mean | O21: Monthly daily maximum
J22: A2 | K22: Jan | L22: 179.9870968 | M22: 200.5 | N22: 179.9870968 | O22: 180.5
K23: Feb | L23: 179.3821429 | M23: 244 | N23: 179.3821429 | O23: 182.1
K24: Mar | L24: 180.4709677 | M24: 218.8 | N24: 180.4709677 | O24: 186.6
K25: Apr | L25: 179.1416667 | M25: 230.7 | N25: 179.1416667 | O25: 180.2
K26: May | L26: 180.4571429 | M26: 249.8 | N26: 180.4571429 | O26: 184.9
K27: Jun | L27: 180.0888889 | M27: 221.6 | N27: 180.0888889 | O27: 180.9
K28: Jul | L28: 180.7516129 | M28: 277.5 | N28: 180.7516129 | O28: 186.6
K29: Aug | L29: 180.7064516 | M29: 253.5 | N29: 180.7064516 | O29: 184.6
K30: Sep | L30: 180.773913 | M30: 236.5 | N30: 180.773913 | O30: 185.5
K31: Oct | L31: 179.8 | M31: 223.9 | N31: 179.8 | O31: 180.2
K32: Nov | L32: 180.05 | M32: 225.5 | N32: 180.05 | O32: 181.6
K33: Dec | L33: 174.3806452 | M33: 248.3 | N33: 174.3806452 | O33: 182.8
K34: Annual | L34: =AVERAGE(L22:L33) -> 179.6658774 | M34: =MAX(M22:M33) -> 277.5 | N34: =AVERAGE(N22:N33) -> 179.6658774 | O34: =MAX(O22:O33) -> 186.6
J36: =+A6 -> 2021 | K36: mg/Nm3 | L36: Monthly 1/2 hourly mean | M36: Monthly 1/2 hourly maximum | N36: Monthly daily mean | O36: Monthly daily maximum
J37: A3 | K37: Jan
K38: Feb
K39: Mar
K40: Apr
K41: May
K42: Jun
K43: Jul
K44: Aug
K45: Sep
K46: Oct
K47: Nov
A48: Comments : | K48: Dec
K49: Annual | L49: =AVERAGE(L37:L48) ->  | M49: =MAX(M37:M48) -> 0 | N49: =AVERAGE(N37:N48) ->  | O49: =MAX(O37:O48) -> 0
J51: =+A6 -> 2021 | K51: mg/Nm3 | L51: Monthly 1/2 hourly mean | M51: Monthly 1/2 hourly maximum | N51: Monthly daily mean | O51: Monthly daily maximum
J52: A4 | K52: Jan
K53: Feb
K54: Mar
K55: Apr
K56: May
K57: Jun
K58: Jul
K59: Aug
K60: Sep
K61: Oct
K62: Nov
K63: Dec
K64: Annual | L64: =AVERAGE(L52:L63) ->  | M64: =MAX(M52:M63) -> 0 | N64: =AVERAGE(N52:N63) ->  | O64: =MAX(O52:O63) -> 0
J66: =+A6 -> 2021 | K66: mg/Nm3 | L66: Monthly 1/2 hourly mean | M66: Monthly 1/2 hourly maximum | N66: Monthly daily mean | O66: Monthly daily maximum
J67: A5 | K67: Jan
K68: Feb
K69: Mar
K70: Apr
K71: May
K72: Jun
K73: Jul
K74: Aug
K75: Sep
K76: Oct
K77: Nov
K78: Dec
K79: Annual | L79: =AVERAGE(L67:L78) ->  | M79: =MAX(M67:M78) -> 0 | N79: =AVERAGE(N67:N78) ->  | O79: =MAX(O67:O78) -> 0

Sheet TOC
A1: =+'Cover Page'!$B$29 -> Annual Performance Report 2021 | E1: =+'Cover Page'!$B$33 -> SUEZ Suffolk Energy from Waste Facility
A3: Monitoring of Total organic carbon emissions | D3: Whole Installation | G3: See Notes in Cell Q3 | J3: =+A3 -> Monitoring of Total organic carbon emissions | N3: Per Combustion Line | Q3: Notes:
Q4: User to add logic to complete Whole installation, Table A5:G18. From the data in Per Combustion Line, Table J6:O79, subject to No. of lines installed
A5: mg/Nm3 | B5: 1/2 Hourly Reference Periods | E5: Daily Reference Periods
A6: =+'Cover Page'!C39 -> 2021 | B6: 1/2 hourly TOC ELV | C6: Monthly 1/2 hourly mean | D6: Highest 1/2 hourly maximum | E6: Daily TOC ELV | F6: Monthly daily mean | G6: Highest daily maximum | J6: =+A6 -> 2021 | K6: mg/Nm3 | L6: Monthly 1/2 hourly mean | M6: Monthly 1/2 hourly maximum | N6: Monthly daily mean | O6: Monthly daily maximum
A7: Jan | B7: 20 | C7: =AVERAGE(L7,L22) -> 0.2919354839 | D7: =MAX(M7,M22) -> 10.3 | E7: 10 | F7: =AVERAGE(N7,N22) -> 0.2919354839 | G7: =MAX(O7,O22) -> 3 | J7: A1 | K7: Jan | L7: 0.2677419355 | M7: 10.3 | N7: 0.2677419355 | O7: 0.5
A8: Feb | B8: 20 | C8: =AVERAGE(L8,L23) -> 0.3111772487 | D8: =MAX(M8,M23) -> 2.8 | E8: 10 | F8: =AVERAGE(N8,N23) -> 0.3111772487 | G8: =MAX(O8,O23) -> 0.5 | K8: Feb | L8: 0.3259259259 | M8: 2.8 | N8: 0.3259259259 | O8: 0.5
A9: Mar | B9: 20 | C9: 0.3507713885 | D9: 4.2 | E9: 10 | F9: 0.3507713885 | G9: 0.5 | K9: Mar | L9: 0.3434782609 | M9: 4.2 | N9: 0.3434782609 | O9: 0.5 | Q9: Whole Installation table A5:G18:
A10: Apr | B10: 20 | C10: 0.4217261905 | D10: 1.3 | E10: 10 | F10: 0.4217261905 | G10: 0.7 | K10: Apr | L10: 0.4142857143 | M10: 1.2 | N10: 0.4142857143 | O10: 0.7 | Q10: Mean: for 1/2 hourly and daily periods calculate mean of values across all operational combustion lines for the month
A11: May | B11: 20 | C11: 0.4497119816 | D11: 3.2 | E11: 10 | F11: 0.4497119816 | G11: 0.6 | K11: May | L11: 0.4387096774 | M11: 2.8 | N11: 0.4387096774 | O11: 0.6
A12: Jun | B12: 20 | C12: 0.445 | D12: 23.2 | E12: 10 | F12: 0.445 | G12: 0.9 | K12: Jun | L12: 0.4566666667 | M12: 23.2 | N12: 0.4566666667 | O12: 0.9
A13: Jul | B13: 20 | C13: 0.4506336406 | D13: 7.6 | E13: 10 | F13: 0.4506336406 | G13: 0.8 | K13: Jul | L13: 0.4464285714 | M13: 7.6 | N13: 0.4464285714 | O13: 0.7 | Q13: Maximum: for 1/2 hourly and daily periods use the highest value across all operational combustion lines for the month
A14: Aug | B14: 20 | C14: 0.4612903226 | D14: 4.9 | E14: 10 | F14: 0.4612903226 | G14: 0.9 | K14: Aug | L14: 0.5 | M14: 3.6 | N14: 0.5 | O14: 0.6
A15: Sep | B15: 20 | C15: 0.5100931677 | D15: 15.8 | E15: 10 | F15: 0.5100931677 | G15: 0.7 | K15: Sep | L15: 0.5071428571 | M15: 0.9 | N15: 0.5071428571 | O15: 0.6
A16: Oct | B16: 20 | C16: 0.5402597403 | D16: 6.7 | E16: 10 | F16: 0.5402597403 | G16: 0.8 | K16: Oct | L16: 0.5714285714 | M16: 6.7 | N16: 0.5714285714 | O16: 0.8
A17: Nov | B17: 20 | C17: 0.3755555556 | D17: 9.2 | E17: 10 | F17: 0.3755555556 | G17: 0.5 | K17: Nov | L17: 0.3777777778 | M17: 9.2 | N17: 0.3777777778 | O17: 0.5
A18: Dec | B18: 20 | C18: 0.385483871 | D18: 5.1 | E18: 10 | F18: 0.385483871 | G18: 0.6 | K18: Dec | L18: 0.3935483871 | M18: 5.1 | N18: 0.3935483871 | O18: 0.5
K19: Annual | L19: =AVERAGE(L7:L18) -> 0.4202611955 | M19: =MAX(M7:M18) -> 23.2 | N19: =AVERAGE(N7:N18) -> 0.4202611955 | O19: =MAX(O7:O18) -> 0.9
J21: =+A6 -> 2021 | K21: mg/Nm3 | L21: Monthly 1/2 hourly mean | M21: Monthly 1/2 hourly maximum | N21: Monthly daily mean | O21: Monthly daily maximum
J22: A2 | K22: Jan | L22: 0.3161290323 | M22: 0.5 | N22: 0.3161290323 | O22: 3
K23: Feb | L23: 0.2964285714 | M23: 0.8 | N23: 0.2964285714 | O23: 0.4
K24: Mar | L24: 0.3580645161 | M24: 3.1 | N24: 0.3580645161 | O24: 0.5
K25: Apr | L25: 0.4291666667 | M25: 1.3 | N25: 0.4291666667 | O25: 0.6
K26: May | L26: 0.4607142857 | M26: 3.2 | N26: 0.4607142857 | O26: 0.6
K27: Jun | L27: 0.4333333333 | M27: 8.1 | N27: 0.4333333333 | O27: 0.5
K28: Jul | L28: 0.4548387097 | M28: 6.5 | N28: 0.4548387097 | O28: 0.8
K29: Aug | L29: 0.4225806452 | M29: 4.9 | N29: 0.4225806452 | O29: 0.9
K30: Sep | L30: 0.5130434783 | M30: 15.8 | N30: 0.5130434783 | O30: 0.7
K31: Oct | L31: 0.5090909091 | M31: 1.8 | N31: 0.5090909091 | O31: 0.8
K32: Nov | L32: 0.3733333333 | M32: 4.7 | N32: 0.3733333333 | O32: 0.5
K33: Dec | L33: 0.3774193548 | M33: 1 | N33: 0.3774193548 | O33: 0.6
K34: Annual | L34: =AVERAGE(L22:L33) -> 0.412011903 | M34: =MAX(M22:M33) -> 15.8 | N34: =AVERAGE(N22:N33) -> 0.412011903 | O34: =MAX(O22:O33) -> 3
J36: =+A6 -> 2021 | K36: mg/Nm3 | L36: Monthly 1/2 hourly mean | M36: Monthly 1/2 hourly maximum | N36: Monthly daily mean | O36: Monthly daily maximum
J37: A3 | K37: Jan
K38: Feb
K39: Mar
K40: Apr
K41: May
K42: Jun
K43: Jul
K44: Aug
K45: Sep
K46: Oct
K47: Nov
A48: Comments : | K48: Dec
K49: Annual | L49: =AVERAGE(L37:L48) ->  | M49: =MAX(M37:M48) -> 0 | N49: =AVERAGE(N37:N48) ->  | O49: =MAX(O37:O48) -> 0
J51: =+A6 -> 2021 | K51: mg/Nm3 | L51: Monthly 1/2 hourly mean | M51: Monthly 1/2 hourly maximum | N51: Monthly daily mean | O51: Monthly daily maximum
J52: A4 | K52: Jan
K53: Feb
K54: Mar
K55: Apr
K56: May
K57: Jun
K58: Jul
K59: Aug
K60: Sep
K61: Oct
K62: Nov
K63: Dec
K64: Annual | L64: =AVERAGE(L52:L63) ->  | M64: =MAX(M52:M63) -> 0 | N64: =AVERAGE(N52:N63) ->  | O64: =MAX(O52:O63) -> 0
J66: =+A6 -> 2021 | K66: mg/Nm3 | L66: Monthly 1/2 hourly mean | M66: Monthly 1/2 hourly maximum | N66: Monthly daily mean | O66: Monthly daily maximum
J67: A5 | K67: Jan
K68: Feb
K69: Mar
K70: Apr
K71: May
K72: Jun
K73: Jul
K74: Aug
K75: Sep
K76: Oct
K77: Nov
K78: Dec
K79: Annual | L79: =AVERAGE(L67:L78) ->  | M79: =MAX(M67:M78) -> 0 | N79: =AVERAGE(N67:N78) ->  | O79: =MAX(O67:O78) -> 0

Sheet Particulates
A1: =+'Cover Page'!$B$29 -> Annual Performance Report 2021 | E1: =+'Cover Page'!$B$33 -> SUEZ Suffolk Energy from Waste Facility
A3: Monitoring of Particulate matter emissions | D3: Whole Installation | G3: See Notes in Cell Q3 | J3: =+A3 -> Monitoring of Particulate matter emissions | N3: Per Combustion Line | Q3: Notes:
Q4: User to add logic to complete Whole installation, Table A5:G18. From the data in Per Combustion Line, Table J6:O79, subject to No. of lines installed
A5: mg/Nm3 | B5: 1/2 Hourly Reference Periods | E5: Daily Reference Periods
A6: =+'Cover Page'!C39 -> 2021 | B6: 1/2 hourly PM ELV | C6: Monthly 1/2 hourly mean | D6: Highest 1/2 hourly maximum | E6: Daily PM ELV | F6: Monthly daily mean | G6: Highest daily maximum | J6: =+A6 -> 2021 | K6: mg/Nm3 | L6: Monthly 1/2 hourly mean | M6: Monthly 1/2 hourly maximum | N6: Monthly daily mean | O6: Monthly daily maximum
A7: Jan | B7: 30 | C7: =AVERAGE(L7,L22) -> 1.203225806 | D7: =MAX(M7,M22) -> 1.8 | E7: 10 | F7: =AVERAGE(N7,N22) -> 1.203225806 | G7: =MAX(O7,O22) -> 1.6 | J7: A1 | K7: Jan | L7: 1.229032258 | M7: 1.8 | N7: 1.229032258 | O7: 1.5
A8: Feb | B8: 30 | C8: =AVERAGE(L8,L23) -> 1.505886243 | D8: =MAX(M8,M23) -> 3.1 | E8: 10 | F8: =AVERAGE(N8,N23) -> 1.505886243 | G8: =MAX(O8,O23) -> 2.4 | K8: Feb | L8: 1.72962963 | M8: 3.1 | N8: 1.72962963 | O8: 2.4
A9: Mar | B9: 30 | C9: 1.394460028 | D9: 3.1 | E9: 10 | F9: 1.394460028 | G9: 2.3 | K9: Mar | L9: 1.869565217 | M9: 3.1 | N9: 1.869565217 | O9: 2.3 | Q9: Whole Installation table A5:G18:
A10: Apr | B10: 30 | C10: 1.480059524 | D10: 2.9 | E10: 10 | F10: 1.480059524 | G10: 2.2 | K10: Apr | L10: 1.914285714 | M10: 2.9 | N10: 1.914285714 | O10: 2.2 | Q10: Mean: for 1/2 hourly and daily periods calculate mean of values across all operational combustion lines for the month
A11: May | B11: 30 | C11: 2.012615207 | D11: 4.3 | E11: 10 | F11: 2.012615207 | G11: 3.5 | K11: May | L11: 2.764516129 | M11: 4 | N11: 2.764516129 | O11: 3.5
A12: Jun | B12: 30 | C12: 1.860555556 | D12: 6.3 | E12: 10 | F12: 1.860555556 | G12: 4.1 | K12: Jun | L12: 2.543333333 | M12: 4.5 | N12: 2.543333333 | O12: 4.1
A13: Jul | B13: 30 | C13: 1.698617512 | D13: 4.2 | E13: 10 | F13: 1.698617512 | G13: 3.9 | K13: Jul | L13: 2.571428571 | M13: 4.2 | N13: 2.571428571 | O13: 3.9 | Q13: Maximum: for 1/2 hourly and daily periods use the highest value across all operational combustion lines for the month
A14: Aug | B14: 30 | C14: 1.316240267 | D14: 2.4 | E14: 10 | F14: 1.316240267 | G14: 1.9 | K14: Aug | L14: 1.803448276 | M14: 2.4 | N14: 1.803448276 | O14: 1.9
A15: Sep | B15: 30 | C15: 1.544254658 | D15: 3.3 | E15: 10 | F15: 1.544254658 | G15: 2.5 | K15: Sep | L15: 2.192857143 | M15: 3.3 | N15: 2.192857143 | O15: 2.5
A16: Oct | B16: 30 | C16: 1.060227273 | D16: 8.9 | E16: 10 | F16: 1.060227273 | G16: 1.8 | K16: Oct | L16: 1.125 | M16: 2.3 | N16: 1.125 | O16: 1.4
A17: Nov | B17: 30 | C17: 0.9168518519 | D17: 4 | E17: 10 | F17: 0.9168518519 | G17: 1.9 | K17: Nov | L17: 0.9037037037 | M17: 2.2 | N17: 0.9037037037 | O17: 1.5
A18: Dec | B18: 30 | C18: 1.109677419 | D18: 3 | E18: 10 | F18: 1.109677419 | G18: 2.1 | K18: Dec | L18: 1.193548387 | M18: 3 | N18: 1.193548387 | O18: 2.1
K19: Annual | L19: =AVERAGE(L7:L18) -> 1.82002903 | M19: =MAX(M7:M18) -> 4.5 | N19: =AVERAGE(N7:N18) -> 1.82002903 | O19: =MAX(O7:O18) -> 4.1
J21: =+A6 -> 2021 | K21: mg/Nm3 | L21: Monthly 1/2 hourly mean | M21: Monthly 1/2 hourly maximum | N21: Monthly daily mean | O21: Monthly daily maximum
J22: A2 | K22: Jan | L22: 1.177419355 | M22: 1.7 | N22: 1.177419355 | O22: 1.6
K23: Feb | L23: 1.282142857 | M23: 2.2 | N23: 1.282142857 | O23: 1.7
K24: Mar | L24: 0.9193548387 | M24: 1.4 | N24: 0.9193548387 | O24: 1.2
K25: Apr | L25: 1.045833333 | M25: 1.4 | N25: 1.045833333 | O25: 1.1
K26: May | L26: 1.260714286 | M26: 4.3 | N26: 1.260714286 | O26: 1.6
K27: Jun | L27: 1.177777778 | M27: 6.3 | N27: 1.177777778 | O27: 1.4
K28: Jul | L28: 0.8258064516 | M28: 1.5 | N28: 0.8258064516 | O28: 1.1
K29: Aug | L29: 0.8290322581 | M29: 1.1 | N29: 0.8290322581 | O29: 0.9
K30: Sep | L30: 0.8956521739 | M30: 1.3 | N30: 0.8956521739 | O30: 1
K31: Oct | L31: 0.9954545455 | M31: 8.9 | N31: 0.9954545455 | O31: 1.8
K32: Nov | L32: 0.93 | M32: 4 | N32: 0.93 | O32: 1.9
K33: Dec | L33: 1.025806452 | M33: 1.3 | N33: 1.025806452 | O33: 1.2
K34: Annual | L34: =AVERAGE(L22:L33) -> 1.030416194 | M34: =MAX(M22:M33) -> 8.9 | N34: =AVERAGE(N22:N33) -> 1.030416194 | O34: =MAX(O22:O33) -> 1.9
J36: =+A6 -> 2021 | K36: mg/Nm3 | L36: Monthly 1/2 hourly mean | M36: Monthly 1/2 hourly maximum | N36: Monthly daily mean | O36: Monthly daily maximum
J37: A3 | K37: Jan
K38: Feb
K39: Mar
K40: Apr
K41: May
K42: Jun
K43: Jul
K44: Aug
K45: Sep
K46: Oct
K47: Nov
A48: Comments : | K48: Dec
K49: Annual | L49: =AVERAGE(L37:L48) ->  | M49: =MAX(M37:M48) -> 0 | N49: =AVERAGE(N37:N48) ->  | O49: =MAX(O37:O48) -> 0
J51: =+A6 -> 2021 | K51: mg/Nm3 | L51: Monthly 1/2 hourly mean | M51: Monthly 1/2 hourly maximum | N51: Monthly daily mean | O51: Monthly daily maximum
J52: A4 | K52: Jan
K53: Feb
K54: Mar
K55: Apr
K56: May
K57: Jun
K58: Jul
K59: Aug
K60: Sep
K61: Oct
K62: Nov
K63: Dec
K64: Annual | L64: =AVERAGE(L52:L63) ->  | M64: =MAX(M52:M63) -> 0 | N64: =AVERAGE(N52:N63) ->  | O64: =MAX(O52:O63) -> 0
J66: =+A6 -> 2021 | K66: mg/Nm3 | L66: Monthly 1/2 hourly mean | M66: Monthly 1/2 hourly maximum | N66: Monthly daily mean | O66: Monthly daily maximum
J67: A5 | K67: Jan
K68: Feb
K69: Mar
K70: Apr
K71: May
K72: Jun
K73: Jul
K74: Aug
K75: Sep
K76: Oct
K77: Nov
K78: Dec
K79: Annual | L79: =AVERAGE(L67:L78) ->  | M79: =MAX(M67:M78) -> 0 | N79: =AVERAGE(N67:N78) ->  | O79: =MAX(O67:O78) -> 0

Sheet CO 95% 10 min
A1: =+'Cover Page'!$B$29 -> Annual Performance Report 2021 | E1: =+'Cover Page'!$B$33 -> SUEZ Suffolk Energy from Waste Facility
A3: Monitoring of Carbon Monoxide (10-minute avg) | E3: Whole Installation | H3: See Notes in Cell S3 | J3: =+A3 -> Monitoring of Carbon Monoxide (10-minute avg) | O3: Per Combustion Line | Q3: Notes: | S3: Notes:
S4: User to add logic to complete Whole installation, Table A5:H18. From the data in Per Combustion Line, Table K6:Q79, subject to No. of lines installed
A5: mg/Nm3 | B5: 10-minute Reference Periods | F5: Daily Reference Periods
A6: =+'Cover Page'!C39 -> 2021 | B6: 95%ile 10-min avg CO ELV | C6: 95%ile 10-min avg maximum | D6: Monthly CO 10-min avg mean | E6: 10-min avg maximum | F6: Daily CO ELV | G6: Monthly daily mean | H6: Highest daily maximum | K6: =+A6 -> 2021 | L6: mg/Nm3 | M6: 95%ile 10-min avg maximum | N6: Monthly CO 10-min avg mean | O6: 10-min avg maximum | P6: Monthly daily mean | Q6: Monthly daily maximum
A7: Jan | B7: 150 | C7: =MAX(M7,M22) -> 4.533268929 | D7: =AVERAGE(N7,N22) -> 1.496774194 | E7: =MAX(O7,O22) -> 356.3 | F7: 50 | G7: =AVERAGE(P7,P22) -> 1.496774194 | H7: =MAX(Q7,Q22) -> 6.3 | K7: A1 | L7: Jan | M7: 4.533268929 | N7: 2.051612903 | O7: 356.3 | P7: 2.051612903 | Q7: 6.3
A8: Feb | B8: =+B7 -> 150 | C8: =MAX(M8,M23) -> 4.735673904 | D8: =AVERAGE(N8,N23) -> 1.311706349 | E8: =MAX(O8,O23) -> 380.5 | F8: =+F7 -> 50 | G8: =AVERAGE(P8,P23) -> 1.311706349 | H8: =MAX(Q8,Q23) -> 5.5 | L8: Feb | M8: 4.735673904 | N8: 1.755555556 | O8: 380.5 | P8: 1.755555556 | Q8: 5.5
A9: Mar | B9: =+B8 -> 150 | C9: 33.32940674 | D9: 1.223352034 | E9: 339.1 | F9: =+F8 -> 50 | G9: 1.223352034 | H9: 3.5 | L9: Mar | M9: 33.32940674 | N9: 1.543478261 | O9: 339.1 | P9: 1.543478261 | Q9: 3.5 | S9: Whole Installation table A5:H18:
A10: Apr | B10: 150 | C10: 5.025080204 | D10: 0.8824404762 | E10: 506.1 | F10: 50 | G10: 0.8824404762 | H10: 6.2 | L10: Apr | M10: 5.025080204 | N10: 0.819047619 | O10: 102.2 | P10: 0.819047619 | Q10: 1.4 | S10: Mean: for 10-min and daily periods use average of all operational combustion lines.
A11: May | B11: 150 | C11: 13.73495865 | D11: 0.8262672811 | E11: 356.6 | F11: 50 | G11: 0.8262672811 | H11: 3.3 | L11: May | M11: 2.605820894 | N11: 1.109677419 | O11: 301.1 | P11: 1.109677419 | Q11: 3.3
A12: Jun | B12: 150 | C12: 3.764966011 | D12: 0.9033333333 | E12: 375.3 | F12: 50 | G12: 0.9033333333 | H12: 5.5 | L12: Jun | M12: 3.764966011 | N12: 1.373333333 | O12: 375.3 | P12: 1.373333333 | Q12: 5.5
A13: Jul | B13: 150 | C13: 119.8748169 | D13: 1.493145161 | E13: 806.5 | F13: 50 | G13: 1.493145161 | H13: 15 | L13: Jul | M13: 3.633466959 | N13: 1.525 | O13: 517.9 | P13: 1.525 | Q13: 7.6 | S13: Maximum: for 10-min and daily periods use the highest of all operational combustion lines in any month.
A14: Aug | B14: 150 | C14: 4.347719193 | D14: 1.592380423 | E14: 508.8 | F14: 50 | G14: 1.592380423 | H14: 7.9 | L14: Aug | M14: 4.347719193 | N14: 1.713793103 | O14: 432.9 | P14: 1.713793103 | Q14: 7.9
A15: Sep | B15: 150 | C15: 3.326891899 | D15: 1.215838509 | E15: 396.1 | F15: 50 | G15: 1.215838509 | H15: 6.9 | L15: Sep | M15: 3.326891899 | N15: 1.414285714 | O15: 387.1 | P15: 1.414285714 | Q15: 6.9
A16: Oct | B16: 150 | C16: 9.251759529 | D16: 0.9402597403 | E16: 380.7 | F16: 50 | G16: 0.9402597403 | H16: 6 | L16: Oct | M16: 9.251759529 | N16: 1.371428571 | O16: 380.7 | P16: 1.371428571 | Q16: 6
A17: Nov | B17: 150 | C17: 17.08854485 | D17: 1.421666667 | E17: 368.5 | F17: 50 | G17: 1.421666667 | H17: 5.1 | L17: Nov | M17: 17.08854485 | N17: 1.8 | O17: 368.5 | P17: 1.8 | Q17: 5.1
A18: Dec | B18: 150 | C18: 4.076889992 | D18: 1.458064516 | E18: 412.2 | F18: 50 | G18: 1.458064516 | H18: 6.9 | L18: Dec | M18: 3.918399096 | N18: 2.090322581 | O18: 412.2 | P18: 2.090322581 | Q18: 6.9
L19: Annual | M19: =AVERAGE(M7:M18) -> 7.963416517 | N19: =AVERAGE(N7:N18) -> 1.547294588 | O19: =MAX(O7:O18) -> 517.9 | P19: =AVERAGE(P7:P18) -> 1.547294588 | Q19: =MAX(Q7:Q18) -> 7.9
K21: =+A6 -> 2021 | L21: mg/Nm3 | M21: 95%ile 10-min avg maximum | N21: Monthly CO 10-min avg mean | O21: 10-min avg maximum | P21: Monthly daily mean | Q21: Monthly daily maximum
K22: A2 | L22: Jan | M22: 2.778242111 | N22: 0.9419354839 | O22: 143.2 | P22: 0.9419354839 | Q22: 2.8
L23: Feb | M23: 2.780174017 | N23: 0.8678571429 | O23: 71.9 | P23: 0.8678571429 | Q23: 1.9
L24: Mar | M24: 3.294980049 | N24: 0.9032258065 | O24: 232.8 | P24: 0.9032258065 | Q24: 3
L25: Apr | M25: 1.742066026 | N25: 0.9458333333 | O25: 506.1 | P25: 0.9458333333 | Q25: 6.2
L26: May | M26: 13.73495865 | N26: 0.5428571429 | O26: 356.6 | P26: 0.5428571429 | Q26: 2.5
L27: Jun | M27: 2.192367077 | N27: 0.4333333333 | O27: 279.4 | P27: 0.4333333333 | Q27: 2.4
L28: Jul | M28: 119.8748169 | N28: 1.461290323 | O28: 806.5 | P28: 1.461290323 | Q28: 15
L29: Aug | M29: 3.762228966 | N29: 1.470967742 | O29: 508.8 | P29: 1.470967742 | Q29: 5.4
L30: Sep | M30: 2.009865046 | N30: 1.017391304 | O30: 396.1 | P30: 1.017391304 | Q30: 4.6
L31: Oct | M31: 4.386783123 | N31: 0.5090909091 | O31: 132 | P31: 0.5090909091 | Q31: 1.5
L32: Nov | M32: 2.943706036 | N32: 1.043333333 | O32: 347.9 | P32: 1.043333333 | Q32: 3.7
L33: Dec | M33: 4.076889992 | N33: 0.8258064516 | O33: 293.6 | P33: 0.8258064516 | Q33: 2.7
L34: Annual | M34: =AVERAGE(M22:M33) -> 13.63142317 | N34: =AVERAGE(N22:N33) -> 0.9135768588 | O34: =MAX(O22:O33) -> 806.5 | P34: =AVERAGE(P22:P33) -> 0.9135768588 | Q34: =MAX(Q22:Q33) -> 15
K36: =+A6 -> 2021 | L36: mg/Nm3 | M36: 95%ile 10-min avg maximum | N36: Monthly CO 10-min avg mean | O36: 10-min avg maximum | P36: Monthly daily mean | Q36: Monthly daily maximum
K37: A3 | L37: Jan
L38: Feb
L39: Mar
L40: Apr
L41: May
L42: Jun
L43: Jul
L44: Aug
L45: Sep
L46: Oct
L47: Nov
A48: Comments : | L48: Dec
A49: Environment Agency explanatory note: The 10-minute average ELV is based on the “95th percentile”. In this case this means that 95% of the 10 minute averages in the relevant 24-hour period (i.e. 137) must be below 150 mg/Nm3, and 5% (i.e. 7) are allowed to be any value above 150 mg/Nm3. Whilst we expect operators to minimise CO emissions at all times, it is perfectly acceptable for the value of the maximum 10-minute average to be above 150 mg/Nm3, provided the 95th percentile ELV has been met for that period. | L49: Annual | M49: =AVERAGE(M37:M48) ->  | O49: =MAX(O37:O48) -> 0 | P49: =AVERAGE(P37:P48) ->  | Q49: =MAX(Q37:Q48) -> 0
K51: =+A6 -> 2021 | L51: mg/Nm3 | M51: 95%ile 10-min avg maximum | N51: Monthly CO 10-min avg mean | O51: 10-min avg maximum | P51: Monthly daily mean | Q51: Monthly daily maximum
K52: A4 | L52: Jan
L53: Feb
L54: Mar
L55: Apr
L56: May
L57: Jun
L58: Jul
L59: Aug
L60: Sep
L61: Oct
L62: Nov
L63: Dec
L64: Annual | M64: =AVERAGE(M52:M63) ->  | O64: =MAX(O52:O63) -> 0 | P64: =AVERAGE(P52:P63) ->  | Q64: =MAX(Q52:Q63) -> 0
K66: =+A6 -> 2021 | L66: mg/Nm3 | M66: 95%ile 10-min avg maximum | N66: Monthly CO 10-min avg mean | O66: 10-min avg maximum | P66: Monthly daily mean | Q66: Monthly daily maximum
K67: A5 | L67: Jan
L68: Feb
L69: Mar
L70: Apr
L71: May
L72: Jun
L73: Jul
L74: Aug
L75: Sep
L76: Oct
L77: Nov
L78: Dec
L79: Annual | M79: =AVERAGE(M67:M78) ->  | O79: =MAX(O67:O78) -> 0 | P79: =AVERAGE(P67:P78) ->  | Q79: =MAX(Q67:Q78) -> 0
